fUSD/lending_fUSD_20240218
["ID","MTS","AMOUNT","RATE_DAILY","PERIOD"]
[314382910,1708251036886,-172.87323601,0.00035616,2]
[314382911,1708251036896,-2152.29,0.00035616,2]
[314382912,1708251036906,-500.0,0.00035616,2]
[314382913,1708251036915,-2152.29,0.00035616,2]
[314382914,1708251036925,-2152.29,0.00035616,2]
[314382915,1708251036935,-2152.29,0.00035616,2]
[314382916,1708251036945,-2152.29,0.00035616,2]
[314382917,1708251036956,-2152.29,0.00035616,2]
[314382918,1708251036969,-500.0,0.00035616,2]
[314382919,1708251036979,-500.0,0.00035616,2]
[314382920,1708251036989,-500.0,0.00035616,2]
[314382921,1708251037001,-500.0,0.00035616,2]
[314382922,1708251037011,-500.0,0.00035616,2]
[314382923,1708251037022,-500.0,0.00035616,2]
[314382924,1708251037039,-500.0,0.00035616,2]
[314382925,1708251037049,-313.34275451,0.00035616,30]
[314382926,1708251037059,-343.13111066,0.00035616,2]
[314382927,1708251037069,-665.79,0.00035616,2]
[314382928,1708251037079,-665.79,0.00035616,2]
[314382930,1708251037275,-665.79,0.00035616,2]
[314382932,1708251037284,-665.79,0.00035616,2]
[314382934,1708251037294,-500.0,0.00035616,2]
[314382935,1708251037303,-665.79,0.00035616,2]
[314382937,1708251037312,-500.0,0.00035616,2]
[314382939,1708251037322,-665.79,0.00035616,2]
[314382941,1708251037331,-500.0,0.00035616,2]
[314382942,1708251037340,-500.0,0.00035616,2]
[314382943,1708251037349,-500.0,0.00035616,2]
[314382944,1708251037358,-500.0,0.00035616,2]
[314382945,1708251037366,-500.0,0.00035616,2]
[314382946,1708251037376,-500.0,0.00035616,2]
[314382947,1708251037384,-570.64,0.00035616,2]
[314382948,1708251037393,-500.0,0.00035616,2]
[314382949,1708251037402,-570.64,0.00035616,2]
[314382950,1708251037411,-500.0,0.00035616,2]
[314382951,1708251037420,-570.64,0.00035616,2]
[314382952,1708251037430,-500.0,0.00035616,2]
[314382953,1708251037439,-570.64,0.00035616,2]
[314382954,1708251037449,-500.0,0.00035616,2]
[314382955,1708251037459,-570.64,0.00035616,2]
[314382956,1708251037471,-500.0,0.00035616,2]
[314382957,1708251037481,-570.64,0.00035616,2]
[314382958,1708251037490,-479.53,0.00035616,2]
[314382959,1708251037500,-500.0,0.00035616,2]
[314382960,1708251037509,-500.0,0.00035616,2]
[314382961,1708251037518,-500.0,0.00035616,2]
[314382962,1708251037527,-269.17481263,0.00035616,2]
[314382963,1708251037536,-2348.7,0.00035616,2]
[314382964,1708251037545,-2348.7,0.00035616,2]
[314382965,1708251037555,-2348.7,0.00035616,2]
[314382966,1708251037564,-2348.7,0.00035616,2]
[314382967,1708251037573,-2348.7,0.00035616,2]
[314382968,1708251037582,-500.0,0.00035616,2]
[314382969,1708251037592,-2348.7,0.00035616,2]
[314382970,1708251037601,-500.0,0.00035616,2]
[314382971,1708251037610,-500.0,0.00035616,2]
[314382972,1708251037619,-500.0,0.00035616,2]
[314382973,1708251037635,-500.0,0.00035616,2]
[314382974,1708251037652,-500.0,0.00035616,2]
[314382975,1708251037662,-500.0,0.00035616,2]
[314382976,1708251037673,-500.0,0.00035616,2]
[314382977,1708251037683,-500.0,0.00035616,2]
[314382978,1708251037693,-462.72336162,0.00035616,2]
[314382979,1708251037704,-6899.01,0.00035616,2]
[314382980,1708251037714,-518.17571081,0.00035616,2]
[314382981,1708251037724,-6899.01,0.00035616,2]
[314382982,1708251037734,-6899.01,0.00035616,2]
[314382983,1708251037744,-6899.01,0.00035616,2]
[314382984,1708251037754,-6899.01,0.00035616,2]
[314382985,1708251037764,-6899.01,0.00035616,2]
[314382986,1708251037775,-500.0,0.00035616,2]
[314382987,1708251037785,-1030.72,0.00035616,2]
[314382988,1708251037795,-1030.72,0.00035616,2]
[314382989,1708251037805,-1030.72,0.00035616,2]
[314382990,1708251037815,-1030.72,0.00035616,2]
[314382991,1708251037825,-1030.72,0.00035616,2]
[314382992,1708251037836,-1030.72,0.00035616,2]
[314382993,1708251037846,-500.0,0.00035616,2]
[314382994,1708251037856,-500.0,0.00035616,2]
[314382995,1708251037866,-500.0,0.00035616,2]
[314382996,1708251037876,-500.0,0.00035616,2]
[314382997,1708251037886,-500.0,0.00035616,2]
[314382998,1708251037896,-464.24096843,0.00035616,2]
[314382999,1708251037905,-1184.1,0.00035616,2]
[314383000,1708251037916,-448.48708112,0.00035616,2]
[314383001,1708251037927,-1184.1,0.00035616,2]
[314383002,1708251037937,-1184.1,0.00035616,2]
[314383003,1708251037948,-1184.1,0.00035616,2]
[314383004,1708251037957,-500.0,0.00035616,2]
[314383005,1708251037969,-1184.1,0.00035616,2]
[314383006,1708251037979,-1184.1,0.00035616,2]
[314383007,1708251037989,-500.0,0.00035616,2]
[314383008,1708251037999,-500.0,0.00035616,2]
[314383009,1708251038015,-153.56,0.00035616,2]
[314383010,1708251038025,-500.0,0.00035616,2]
[314383011,1708251038035,-500.0,0.00035616,2]
[314383012,1708251038045,-500.0,0.00035616,2]
[314383013,1708251038055,-500.0,0.00035616,2]
[314383014,1708251038066,-500.0,0.00035616,2]
[314383015,1708251038075,-500.0,0.00035616,2]
[314383016,1708251038085,-429.79566935,0.00035616,2]
[314383017,1708251038095,-500.0,0.00035616,2]
[314383018,1708251038104,-304.16755345,0.00035616,2]
[314383019,1708251038115,-196.44099181,0.00035616,2]
[314383020,1708251038124,-1795.19,0.00035616,2]
[314383021,1708251038134,-1795.19,0.00035616,2]
[314383022,1708251038143,-1795.19,0.00035616,2]
[314383023,1708251038153,-500.0,0.00035616,2]
[314383024,1708251038162,-1795.19,0.00035616,2]
[314383025,1708251038175,-500.0,0.00035616,2]
[314383026,1708251038185,-1795.19,0.00035616,2]
[314383027,1708251038194,-1795.19,0.00035616,2]
[314383028,1708251038204,-500.0,0.00035616,2]
[314383029,1708251038215,-500.0,0.00035616,2]
[314383030,1708251038224,-403.43385747,0.00035616,2]
[314383031,1708251038234,-500.0,0.00035616,2]
[314383032,1708251038244,-500.0,0.00035616,2]
[314383033,1708251038254,-1603.22,0.00035616,2]
[314383034,1708251038263,-1603.22,0.00035616,2]
[314383035,1708251038273,-1603.22,0.00035616,2]
[314383036,1708251038282,-500.0,0.00035616,2]
[314383037,1708251038292,-1603.22,0.00035616,2]
[314383038,1708251038301,-500.0,0.00035616,2]
[314383039,1708251038310,-1603.22,0.00035616,2]
[314383040,1708251038319,-1603.22,0.00035616,2]
[314383041,1708251038328,-577.52950558,0.00035616,2]
[314383042,1708251038338,-500.0,0.00035616,2]
[314383043,1708251038348,-500.0,0.00035616,2]
[314383044,1708251038357,-500.0,0.00035616,2]
[314383045,1708251038367,-500.0,0.00035616,2]
[314383046,1708251038376,-500.0,0.00035616,2]
[314383047,1708251038386,-500.0,0.00035616,2]
[314383048,1708251038395,-440.84191607,0.00035616,2]
[314383049,1708251038404,-500.0,0.00035616,2]
[314383050,1708251038414,-500.0,0.00035616,2]
[314383051,1708251038423,-500.0,0.00035616,2]
[314383052,1708251038434,-500.0,0.00035616,2]
[314383053,1708251038444,-500.0,0.00035616,2]
[314383054,1708251038453,-500.0,0.00035616,2]
[314383055,1708251038463,-500.0,0.00035616,2]
[314383056,1708251038473,-500.0,0.00035616,2]
[314383057,1708251038483,-538.29322023,0.00035616,2]
[314383058,1708251038492,-500.0,0.00035616,2]
[314383059,1708251038501,-345.79,0.00035616,2]
[314383060,1708251038511,-500.0,0.00035616,2]
[314383061,1708251038520,-500.0,0.00035616,2]
[314383062,1708251038529,-500.0,0.00035616,2]
[314383063,1708251038538,-500.0,0.00035616,2]
[314383064,1708251038548,-500.0,0.00035616,2]
[314383065,1708251038557,-1000.0,0.00035616,7]
[314383066,1708251038566,-500.0,0.00035616,2]
[314383067,1708251038576,-500.0,0.00035616,2]
[314383068,1708251038585,-500.0,0.00035616,2]
[314383069,1708251038595,-500.0,0.00035616,2]
[314383070,1708251038604,-500.0,0.00035616,2]
[314383071,1708251038613,-500.0,0.00035616,2]
[314383072,1708251038623,-500.0,0.00035616,2]
[314383073,1708251038632,-417.76,0.00035616,2]
[314383074,1708251038641,-500.0,0.00035616,2]
[314383075,1708251038651,-500.0,0.00035616,2]
[314383076,1708251038660,-500.0,0.00035616,2]
[314383077,1708251038670,-500.0,0.00035616,2]
[314383078,1708251038679,-500.0,0.00035616,2]
[314383079,1708251038689,-500.0,0.00035616,2]
[314383080,1708251038698,-500.0,0.00035616,2]
[314383081,1708251038707,-432.76340296,0.00035616,2]
[314383082,1708251038718,-1226.88,0.00035616,2]
[314383083,1708251038727,-1226.88,0.00035616,2]
[314383084,1708251038736,-1226.88,0.00035616,2]
[314383085,1708251038746,-1226.88,0.00035616,2]
[314383086,1708251038755,-1519.33,0.00035736,2]
[314383087,1708251038764,-214.8336041,0.00035754,2]
[314383088,1708251038773,-1161.75,0.00035798,2]
[314383089,1708251038783,-423.61,0.000358,2]
[314383090,1708251038792,-3745.86466,0.000358,2]
[314383091,1708251038802,-54192.847876,0.000358,2]
[314383092,1708251038811,-194.93709364,0.00035806,7]
[314383093,1708251038821,-4061.27855302,0.00035813,8]
[314383094,1708251038830,-2000.0,0.000359,2]
[314383095,1708251038839,-1519.33,0.00035914,2]
[314383096,1708251038848,-522.54,0.00035988,2]
[314383097,1708251038857,-401.95615608,0.00035998,7]
[314383098,1708251038867,-1500.0,0.00036,4]
[314383099,1708251038876,-155.0,0.00036,2]
[314383100,1708251038886,-177.48,0.00036,2]
[314383101,1708251038895,-502.76880153,0.00036,2]
[314383102,1708251038905,-4000.0,0.00036,2]
[314383103,1708251038914,-975.66,0.0003602,2]
[314383104,1708251038924,-153.7,0.00036065,2]
[314383105,1708251038933,-214.8336041,0.00036072,2]
[314383106,1708251038942,-4061.27855302,0.00036079,8]
[314383107,1708251038951,-209.0,0.0003608,2]
[314383108,1708251038961,-214.0,0.0003608,2]
[314383109,1708251038971,-1519.33,0.00036093,2]
[314383110,1708251038980,-153.63722132,0.00036146,2]
[314383111,1708251038990,-586.82141125,0.00036148,2]
[314383112,1708251039000,-1242.94096905,0.00036158,2]
[314383113,1708251039010,-151.0,0.00036215,30]
[314383114,1708251039019,-1519.33,0.00036272,2]
[314383115,1708251039029,-333.0,0.00036287,2]
[314383116,1708251039038,-173.08,0.0003629,2]
[314383117,1708251039049,-4061.27855302,0.00036345,9]
[314383118,1708251039058,-500.0,0.00036388,2]
[314383119,1708251039067,-500.0,0.00036388,2]
[314383120,1708251039077,-500.0,0.00036388,2]
[314383121,1708251039086,-992.11,0.00036388,2]
[314383122,1708251039095,-1474.87,0.00036388,2]
[314383123,1708251039105,-2152.29,0.00036388,2]
[314383124,1708251039114,-665.79,0.00036388,2]
[314383125,1708251039123,-2348.7,0.00036388,2]
[314383126,1708251039133,-329.50616879,0.00036388,2]
[314383127,1708251039142,-6899.01,0.00036388,2]
[314383128,1708251039154,-500.0,0.00036388,2]
[314383129,1708251039164,-1795.19,0.00036388,2]
[314383130,1708251039174,-1603.22,0.00036388,2]
[314383131,1708251039183,-214.8336041,0.0003639,2]
[314383132,1708251039193,-1160.65684389,0.00036408,2]
[314383133,1708251039203,-19859.0,0.00036418,2]
[314383134,1708251039212,-7419.0,0.00036418,2]
[314383135,1708251039224,-2929.0,0.00036418,2]
[314383136,1708251039234,-5630.0,0.00036418,2]
[314383137,1708251039243,-4271.40571137,0.00036418,2]
[314383138,1708251039287,-1460.75587726,0.00036418,2]
[314383139,1708251040166,-206.0,0.00031833,2]
[314383140,1708251040178,-315.458823,0.000348,2]
[314383141,1708251040187,-236.44622271,0.00035,3]
[314383142,1708251040197,-722.89274399,0.00035616,2]
[314383143,1708251040227,-503.98725601,0.00035616,2]
[314383144,1708251040236,-1226.88,0.00035616,2]
[314383145,1708251040247,-585.27,0.00035616,2]
[314383146,1708251040260,-585.27,0.00035616,2]
[314383147,1708251040269,-585.27,0.00035616,2]
[314383148,1708251040278,-585.27,0.00035616,2]
[314383149,1708251040288,-585.27,0.00035616,2]
[314383150,1708251040298,-585.27,0.00035616,2]
[314383151,1708251040307,-473.188234,0.000358,2]
[314383152,1708251040316,-150.73451339,0.00036,2]
[314383153,1708251040325,-585.27,0.00036388,2]
[314383154,1708251040336,-36873.83841137,0.00036418,2]
[314383155,1708251040345,-4100.0,0.00036418,2]
[314383156,1708251040355,-8169.0,0.00036418,2]
[314383157,1708251040364,-2291.0,0.00036418,2]
[314383158,1708251040373,-1038.0,0.00036418,2]
[314383159,1708251040382,-166.02,0.00036422,2]
[314383160,1708251040391,-1519.33,0.0003645,2]
[314383161,1708251040400,-800.0,0.00036498,3]
[314383162,1708251040409,-200.0,0.00036498,10]
[314383163,1708251040418,-200.0,0.00036498,10]
[314383164,1708251040427,-200.0,0.00036502,3]
[314383165,1708251040437,-206.0,0.00036528,11]
[314383166,1708251040445,-177.48,0.00036548,2]
[314383167,1708251040454,-616.65,0.00036549,2]
[314383168,1708251040464,-209.0,0.0003657,2]
[314383169,1708251040474,-214.0,0.0003657,2]
[314383170,1708251040483,-4061.27855302,0.00036611,9]
[314383171,1708251040493,-1519.33,0.00036629,2]
[314383172,1708251040502,-1500.0,0.00036632,2]
[314383173,1708251040511,-563.14686525,0.0003668,30]
[314383174,1708251040520,-500.0,0.00036688,2]
[314383175,1708251040529,-1097.61,0.00036688,2]
[314383176,1708251040538,-500.0,0.00036688,2]
[314383177,1708251040551,-1005.31,0.00036688,2]
[314383178,1708251040560,-502.19,0.00036688,2]
[314383179,1708251040570,-500.0,0.00036688,2]
[314383180,1708251040579,-1030.72,0.00036688,2]
[314383181,1708251040589,-1184.1,0.00036688,2]
[314383182,1708251040598,-1226.88,0.00036688,2]
[314383183,1708251040607,-2267.11205685,0.00036689,2]
[314383184,1708251040616,-388.18110104,0.000367,2]
[314383185,1708251040626,-214.8336041,0.00036708,2]
[314383186,1708251040635,-154.6319893,0.00036708,7]
[314383187,1708251040645,-2039.6476325,0.00036708,2]
[314383188,1708251040654,-10150.13867913,0.00036708,2]
[314383189,1708251040663,-1840.43588767,0.00036708,2]
[314383190,1708251040672,-334.637057,0.00036708,2]
[314383191,1708251040682,-2620.34139,0.00036708,2]
[314383192,1708251040691,-200.0,0.00036789,2]
[314383193,1708251040700,-150.0,0.00036792,2]
[314383194,1708251040710,-500.0,0.00036797,2]
[314383195,1708251040721,-500.0,0.00036797,7]
[314383196,1708251040730,-500.0,0.00036797,2]
[314383197,1708251040739,-500.0,0.00036797,2]
[314383198,1708251040749,-1474.87,0.00036797,2]
[314383199,1708251040758,-570.64,0.00036797,2]
[314383200,1708251040767,-2348.7,0.00036797,2]
[314383201,1708251040777,-1795.19,0.00036797,2]
[314383202,1708251040786,-1603.22,0.00036797,2]
[314383203,1708251040796,-500.0,0.00036797,2]
[314383204,1708251040806,-152.3142153,0.00036798,2]
[314383205,1708251040815,-16341.29436344,0.00036798,2]
[314383206,1708251040825,-16341.29436342,0.00036798,2]
[314383207,1708251040834,-16341.29436342,0.00036798,2]
[314383208,1708251040844,-16341.29436342,0.00036798,2]
[314383209,1708251040853,-16341.29436342,0.00036798,2]
[314383210,1708251040863,-16341.29436342,0.00036798,2]
[314383211,1708251040872,-16341.29436342,0.00036798,2]
[314383212,1708251040882,-665.79,0.00036799,2]
[314383213,1708251040891,-6899.01,0.00036799,2]
[314383214,1708251040901,-57810.84646016,0.000368,2]
[314383215,1708251040910,-4994.486214,0.000368,2]
[314383216,1708251040920,-72257.130501,0.000368,2]
[314383217,1708251040929,-630.917646,0.000368,2]
[314383218,1708251040938,-1519.33,0.00036808,2]
[314383219,1708251040948,-1500.0,0.00036812,2]
[314383220,1708251040957,-150.0,0.00036819,2]
[314383221,1708251040967,-194.93709364,0.00036853,8]
[314383222,1708251040977,-586.82141125,0.00036871,2]
[314383223,1708251040986,-500.0,0.00036876,2]
[314383224,1708251040995,-1097.61,0.00036876,2]
[314383225,1708251041005,-500.0,0.00036876,2]
[314383226,1708251041014,-1005.31,0.00036876,2]
[314383227,1708251041023,-502.19,0.00036876,2]
[314383228,1708251041032,-500.0,0.00036876,2]
[314383229,1708251041042,-1030.72,0.00036876,2]
[314383230,1708251041051,-1184.1,0.00036876,2]
[314383231,1708251041060,-1226.88,0.00036876,2]
[314383232,1708251041070,-4061.27855302,0.00036877,9]
[314383233,1708251041080,-1197.15111634,0.00036898,2]
[314383234,1708251041089,-5000.0,0.00036899,3]
[314383235,1708251041099,-701.81610333,0.000369,2]
[314383236,1708251041108,-153.67516026,0.000369,2]
[314383237,1708251041117,-150.0,0.00036905,2]
[314383238,1708251041126,-1500.0,0.00036924,2]
[314383239,1708251041135,-538.36497805,0.00036927,2]
[314383240,1708251041144,-500.0,0.00036933,2]
[314383241,1708251041153,-500.0,0.00036933,7]
[314383242,1708251041162,-500.0,0.00036933,2]
[314383243,1708251041175,-500.0,0.00036933,2]
[314383244,1708251041184,-570.64,0.00036933,2]
[314383245,1708251041193,-500.0,0.00036933,2]
[314383246,1708251041203,-150.0,0.00036938,2]
[314383247,1708251041213,-150.0,0.0003694,2]
[314383248,1708251041225,-150.0,0.00036944,2]
[314383249,1708251041234,-151.0,0.00036954,7]
[314383250,1708251041243,-153.7,0.00036955,2]
[314383251,1708251041253,-150.0,0.00036986,2]
[314383252,1708251041263,-300.0,0.00036986,7]
[314383253,1708251041273,-450.0,0.00036986,12]
[314383254,1708251041281,-600.0,0.00036986,17]
[314383255,1708251041291,-750.0,0.00036986,22]
[314383256,1708251041300,-632.05244663,0.00036986,27]
[314383257,1708251041309,-1519.33,0.00036986,2]
[314383258,1708251041318,-200.0,0.00036987,2]
[314383259,1708251041328,-200.0,0.00036997,3]
[314383260,1708251041337,-800.0,0.00036997,3]
[314383261,1708251041347,-200.0,0.00036997,10]
[314383262,1708251041357,-500.0,0.00036997,10]
[314383263,1708251041378,-200.0,0.00036997,10]
[314383264,1708251041388,-1474.87,0.00036997,2]
[314383265,1708251041398,-2348.7,0.00036997,2]
[314383266,1708251041408,-1795.19,0.00036997,2]
[314383267,1708251041418,-1603.22,0.00036997,2]
[314383268,1708251041429,-500.0,0.00036998,2]
[314383269,1708251041439,-500.0,0.00036998,2]
[314383270,1708251041449,-500.0,0.00036998,2]
[314383271,1708251041459,-992.11,0.00036998,2]
[314383272,1708251041470,-2152.29,0.00036998,2]
[314383273,1708251041480,-500.0,0.00036998,2]
[314383274,1708251041490,-585.27,0.00036998,2]
[314383275,1708251041500,-210.729625,0.00036999,2]
[314383276,1708251041509,-183.16782828,0.00036999,2]
[314383277,1708251041519,-500.0,0.00036999,2]
[314383278,1708251041530,-150.0,0.00036999,2]
[314383279,1708251041540,-665.79,0.00036999,2]
[314383280,1708251041550,-6899.01,0.00036999,2]
[314383281,1708251041560,-100000.0,0.00037,7]
[314383282,1708251041570,-20173.96637061,0.00037,21]
[314383283,1708251041580,-362.02954716,0.00037,4]
[314383284,1708251041589,-980.0,0.00037,7]
[314383285,1708251041601,-1000.0,0.00037,7]
[314383286,1708251041611,-1000.0,0.00037,7]
[314383287,1708251041621,-1000.0,0.00037,7]
[314383288,1708251041630,-1000.0,0.00037,7]
[314383289,1708251041641,-1000.0,0.00037,7]
[314383290,1708251041651,-1000.0,0.00037,7]
[314383291,1708251041661,-1000.0,0.00037,7]
[314383292,1708251041671,-552.0,0.00037,7]
[314383293,1708251041683,-827.0,0.00037,7]
[314383294,1708251041693,-1000.0,0.00037,7]
[314383295,1708251041703,-150.0,0.00037012,7]
[314383296,1708251041714,-300.0,0.00037046,2]
[314383297,1708251041726,-209.0,0.0003706,2]
[314383298,1708251041738,-214.0,0.0003706,2]
[314383299,1708251041749,-213.0,0.0003706,2]
[314383300,1708251041758,-150.0,0.0003707,2]
[314383301,1708251041768,-300.0,0.00037074,2]
[314383302,1708251041778,-1161.75,0.00037075,2]
[314383303,1708251041788,-177.48,0.00037096,2]
[314383304,1708251041798,-150.0,0.00037112,2]
[314383305,1708251041807,-150.0,0.00037113,2]
[314383306,1708251041817,-150.0,0.00037121,2]
[314383307,1708251041827,-152.0,0.00037125,4]
[314383308,1708251041836,-1500.0,0.00037136,2]
[314383309,1708251041847,-4061.27855302,0.00037143,10]
[314383310,1708251041857,-150.0,0.00037162,2]
[314383311,1708251041866,-1519.33,0.00037165,2]
[314383312,1708251041876,-300.0,0.00037173,2]
[314383313,1708251041886,-150.0,0.00037173,2]
[314383314,1708251041897,-150.0,0.00037186,2]
[314383315,1708251041906,-150.0,0.00037207,2]
[314383316,1708251041916,-150.0,0.00037227,2]
[314383317,1708251041926,-300.0,0.00037235,2]
[314383318,1708251041936,-267.12078984,0.00037286,2]
[314383319,1708251041946,-388.18110102,0.000373,2]
[314383320,1708251041955,-150.0,0.00037304,2]
[314383321,1708251041965,-2039.6476325,0.00037304,2]
[314383322,1708251041976,-10150.13867913,0.00037304,2]
[314383323,1708251041986,-1840.43588765,0.00037304,2]
[314383324,1708251041996,-334.63705699,0.00037304,2]
[314383325,1708251042005,-2620.34138998,0.00037304,2]
[314383326,1708251042015,-150.0,0.00037305,2]
[314383327,1708251042024,-150.0,0.00037317,2]
[314383328,1708251042034,-150.0,0.00037329,2]
[314383329,1708251042044,-538.36497805,0.00037337,2]
[314383330,1708251042054,-1519.33,0.00037344,2]
[314383331,1708251042063,-150.0,0.00037348,2]
[314383332,1708251042077,-2654305.10058263,0.00037348,2]
[314383337,1708251042307,-4868.69268851,0.00037348,2]
[314383350,1708251042552,-779.5665,0.0003498,2]
[314383351,1708251042564,-881.00476,0.0003498,2]
[314383352,1708251042573,-177.29533853,0.000358,2]
[314383353,1708251042585,-212.37466147,0.000358,2]
[314383354,1708251042595,-2397.31414592,0.00037348,2]
[314383355,1708251042607,-4158.93694215,0.00037348,2]
[314383356,1708251042622,-83952.25071582,0.00037348,2]
[314383357,1708251042634,-1165.33065887,0.00037348,2]
[314383358,1708251042659,-7662.6564337,0.00037348,2]
[314383359,1708251042776,-155.0,0.00031832,2]
[314383360,1708251042787,-48549.86380445,0.00037348,2]
[314383361,1708251042799,-2201.4420806,0.00037348,2]
[314383362,1708251042811,-14088.97337361,0.00037348,2]
[314383363,1708251042823,-321.66249198,0.00037348,2]
[314383366,1708251042843,-664.00152642,0.00037348,2]
[314383370,1708251042873,-6508.50996031,0.00037348,2]
[314383372,1708251042885,-3862.3152845,0.00037348,2]
[314383381,1708251046536,-1412.6,0.00037317,2]
[314383382,1708251046628,-555.88908337,0.00037317,2]
[314383383,1708251046783,-495.2108211,0.00037317,2]
[314383384,1708251046805,-497.28303073,0.00037317,2]
[314383385,1708251046818,-447.35141135,0.00037317,2]
[314383386,1708251046830,-1866.06565345,0.00037317,2]
[314383387,1708251046840,-1861.93225657,0.00037347,4]
[314383388,1708251046850,-4353.82303092,0.00037347,2]
[314383389,1708251046862,-1079.69844227,0.00037347,2]
[314383404,1708251279443,550.0,0.00025,3]
[314383406,1708251990110,-156.8351505,0.00028833,2]
[314383412,1708252231708,-49.1648495,0.00028833,2]
[314383413,1708252231718,-206.0,0.00028833,2]
[314383414,1708252231727,-337.50779899,0.00029731,2]
[314383415,1708252231764,-1815.2839601,0.00029731,2]
[314383416,1708252231773,-1867.5831,0.00029732,3]
[314383417,1708252231989,-248.79715069,0.00029832,2]
[314383418,1708252231999,-1861.93225657,0.0003,4]
[314383420,1708252232009,-3000.0,0.0003,2]
[314383422,1708252232019,-155.0,0.00031702,4]
[314383424,1708252232029,-214.8336041,0.00031703,2]
[314383426,1708252232038,-150.0,0.00031802,2]
[314383429,1708252232047,-518.1,0.00031804,2]
[314383431,1708252232057,-9999.99,0.00031804,2]
[314383433,1708252232066,-557.234157,0.00032633,2]
[314383435,1708252232076,-499.99,0.00032633,2]
[314383436,1708252232085,-6027.0,0.000329,2]
[314383439,1708252232095,-2000.0,0.00033,5]
[314383441,1708252232105,-331.62,0.00033348,2]
[314383443,1708252232114,-7091.91,0.00033367,2]
[314383445,1708252232123,-2000.0,0.00033384,2]
[314383447,1708252232132,-250.0,0.00033395,111]
[314383449,1708252232141,-218.47,0.00033433,2]
[314383450,1708252232150,-152.0,0.000335,3]
[314383452,1708252232159,-653.03,0.00033612,2]
[314383455,1708252232169,-218.47,0.00033627,2]
[314383457,1708252232178,-453.26,0.00033681,2]
[314383458,1708252232187,-600.0,0.00033698,2]
[314383460,1708252232196,-169.36,0.00033745,2]
[314383462,1708252232205,-218.47,0.0003382,2]
[314383463,1708252232215,-270.8,0.00033866,2]
[314383465,1708252232224,-218.47,0.00034013,2]
[314383467,1708252232233,-206.0,0.00034028,11]
[314383468,1708252232243,-318.68,0.00034055,2]
[314383469,1708252232253,-518.1,0.00034068,2]
[314383470,1708252232263,-363.41,0.00034071,2]
[314383471,1708252232272,-363.41,0.00034164,2]
[314383472,1708252232282,-218.47,0.00034206,2]
[314383473,1708252232291,-303.87,0.00034245,2]
[314383474,1708252232300,-363.41,0.00034258,2]
[314383475,1708252232309,-363.41,0.00034351,2]
[314383476,1708252232318,-218.47,0.00034399,2]
[314383477,1708252232327,-250.0,0.00034401,2]
[314383478,1708252232336,-250.0,0.00034405,2]
[314383479,1708252232345,-303.87,0.00034426,2]
[314383480,1708252232354,-363.41,0.00034445,2]
[314383481,1708252232364,-270.85,0.00034515,2]
[314383482,1708252232373,-933.09,0.00034521,2]
[314383483,1708252232383,-363.41,0.00034538,2]
[314383484,1708252232392,-218.47,0.00034592,2]
[314383485,1708252232401,-303.87,0.00034606,2]
[314383486,1708252232410,-1000.0,0.0003463,2]
[314383487,1708252232420,-363.41,0.00034632,2]
[314383488,1708252232429,-400.0,0.00034653,2]
[314383489,1708252232439,-363.41,0.00034725,2]